bitfinex/quotes_ETHUSD_20260102
["timestamp","ask_amount","ask_price","bid_price","bid_amount"]
[1767370683709,9.17863451,3108.1,3106.6,0.001]
[1767370683914,9.17863451,3107.9,3106.6,0.001]
[1767370684210,9.17863451,3107.7,3106.6,1.04e-06]
[1767370684432,9.17863451,3107.6,3105.9,0.001]
[1767370684645,9.17863451,3106.9,3105.1,9.62087152]
[1767370684846,3.21813875,3107.4,3105.1,9.62087152]
[1767370684847,9.17863451,3107.4,3105.3,9.62087152]
[1767370685063,1.00216345,3107.8,3105.5,9.62087152]
[1767370685064,1.84516345,3107.8,3105.5,9.62087152]
[1767370685355,13.2393579,3107.8,3105.9,9.62087152]
[1767370685712,16.45708129,3107.8,3106.1,9.62087152]
[1767370685943,9.17863451,3107.7,3105.9,0.843]
[1767370686114,9.17863451,3107.7,3105.6,0.96208715]
[1767370686446,9.17863451,3107.2,3105.5,9.62087152]
[1767370686663,9.17863451,3106.8,3104.9,9.62087158]
[1767370686823,9.17863451,3106.5,3104.9,6e-08]
[1767370687015,9.17863451,3106.8,3104.9,6e-08]
[1767370687215,9.43815707,3106.6,3104.9,6e-08]
[1767370687423,9.17863451,3106.1,3104.9,6e-08]
[1767370687623,9.17863451,3105.9,3104.9,6e-08]
[1767370688115,12.95855695,3106.9,3104.9,6e-08]
[1767370688116,9.17863451,3106.5,3105.0,9.62087152]
[1767370688727,15.61550507,3107.1,3105.3,9.62087152]
[1767370688925,15.61550507,3107.1,3105.2,3.22040448]
[1767370688926,9.17863451,3107.1,3105.4,10.46387152]
[1767370689126,4.06133161,3107.2,3105.4,10.46387152]
[1767370689325,4.06133161,3107.2,3105.2,3.22040448]
[1767370689326,4.46746477,3107.2,3105.6,9.62087152]
[1767370689529,7.6858168,3107.2,3105.6,9.62087152]
[1767370689739,9.17863451,3107.1,3105.6,10.46387152]
[1767370689947,9.17863451,3106.6,3104.9,6e-08]
[1767370690154,9.17863451,3106.6,3104.9,12.84257232]
[1767370690317,9.17863451,3106.6,3105.0,9.65307763]
[1767370690546,9.17863451,3106.6,3105.1,0.843]
[1767370690771,3.21905681,3106.5,3105.0,9.62087152]
[1767370690972,10.02163451,3106.6,3105.1,0.96218716]
[1767370690973,10.02163451,3106.4,3105.1,0.96218716]
[1767370691177,10.02163451,3106.4,3104.9,0.00100006]
[1767370692274,9.17863451,3106.2,3104.9,0.00100006]
[1767370692669,12.39810587,3106.1,3104.9,0.00100006]
[1767370692895,3.21897007,3106.6,3104.9,0.00100006]
[1767370692896,0.843,3106.0,3104.9,0.00100006]
[1767370693073,3.2207665,3106.8,3104.9,10.46487158]
[1767370693382,3.86470611,3106.8,3105.1,9.62087152]
[1767370693588,7.08347261,3106.8,3105.2,0.03220403]
[1767370693756,10.02163451,3106.7,3105.1,10.46387152]
[1767370693958,10.02163451,3106.7,3105.2,0.03220404]
[1767370694169,9.17863451,3106.7,3105.2,9.65307556]
[1767370694480,6.43962516,3106.8,3105.3,10.67047908]
[1767370695077,9.18063451,3106.8,3105.3,10.67047908]
[1767370695245,0.002,3106.8,3105.5,9.62087152]
[1767370695648,10.02163451,3107.9,3105.7,9.62087152]
[1767370695848,1.00216345,3107.8,3105.9,9.62087152]
[1767370696048,6.43682376,3108.1,3106.1,9.62087152]
[1767370696276,6.43682376,3108.1,3106.3,9.62087152]
[1767370696481,0.0241098,3108.0,3106.4,9.62087152]
[1767370696667,9.20274431,3108.0,3106.4,10.46387152]
[1767370696843,13.68184522,3107.8,3105.8,9.62087152]
[1767370697049,6.43583472,3107.6,3106.0,9.62087152]
[1767370697346,9.17863451,3107.7,3106.0,9.62087152]
[1767370697555,12.39648608,3107.7,3106.2,9.62087152]
[1767370697752,1.88569921,3107.9,3106.3,9.62087152]
[1767370697992,0.002,3108.1,3106.5,9.62087152]
[1767370698199,6.46111588,3108.1,3106.6,0.843]
[1767370698366,6.43700608,3108.1,3106.7,0.843]
[1767370698572,3.21450821,3108.1,3106.7,10.46387152]
[1767370698766,6.43201125,3108.1,3106.8,1.04638715]
[1767370699194,3.21450821,3108.1,3106.8,1.04638715]
[1767370699397,13.23983534,3108.3,3106.8,10.66725867]
[1767370699597,9.20274431,3108.2,3107.1,1.7]
[1767370699775,9.17863451,3108.2,3107.1,1.7]
[1767370699983,9.17863451,3108.0,3107.1,1.7]
[1767370700299,9.17863451,3107.7,3105.9,0.843]
[1767370700475,9.17863451,3107.3,3105.5,0.843]
[1767370700676,10.04674431,3107.2,3105.6,1.04638715]
[1767370700875,10.02263451,3107.2,3105.6,1.04638715]
[1767370701075,6.43707756,3107.0,3105.6,1.04638715]
[1767370701378,0.0241098,3106.9,3105.6,1.04638715]
[1767370701577,0.0241098,3106.9,3105.4,9.62087152]
[1767370701578,9.17863451,3106.8,3105.4,9.62087152]
[1767370701879,9.17863451,3106.3,3104.9,0.00100006]
[1767370702095,10.04674431,3106.2,3104.9,0.00100006]
[1767370702409,9.17863451,3105.8,3104.9,6e-08]
[1767370702977,0.844,3105.7,3104.9,6e-08]
[1767370703288,6.44018676,3105.5,3104.9,6e-08]
[1767370703497,3.22009338,3105.5,3104.9,6e-08]
[1767370703809,3.22009338,3105.5,3103.6,0.001]
[1767370703810,9.17863451,3105.3,3103.6,0.001]
[1767370704010,3.22009338,3105.5,3103.6,9.65409216]
[1767370704179,4.06403294,3105.6,3104.1,9.62087152]
[1767370704382,10.50290125,3105.6,3104.2,4.21572666]
[1767370704610,9.17863451,3105.6,3104.2,13.80438377]
[1767370704804,12.39864862,3105.6,3104.2,13.80438377]
[1767370705009,6.44002822,3105.6,3104.3,9.62087152]
[1767370705219,15.61866273,3105.6,3103.9,10.46487152]
[1767370705412,9.17863451,3105.5,3103.9,9.62087152]
[1767370705630,2.72786768,3105.4,3103.9,9.62087152]
[1767370705809,2.72786768,3105.4,3103.6,0.001]
[1767370705810,4.50321071,3104.9,3103.6,0.001]
[1767370706015,0.844,3104.9,3103.6,0.001]
[1767370706424,9.94472527,3104.9,3103.6,0.001]
[1767370706625,9.10072527,3104.8,3103.6,0.001]
[1767370706817,11.68022462,3104.7,3103.6,0.001]
[1767370707015,9.92615209,3105.3,3103.6,0.001]
[1767370707230,13.14666028,3105.1,3103.6,9.31561184]
[1767370707437,16.36716847,3105.1,3103.6,10.15961184]
[1767370707605,10.77015209,3105.1,3103.8,9.31461184]
[1767370707809,10.77015209,3105.1,3103.6,0.001]
[1767370708139,1.25320343,3105.0,3103.6,0.845]
[1767370708522,1.25320343,3105.0,3103.6,10.15961184]
[1767370708722,9.92615209,3104.9,3103.6,0.001]
[1767370709043,14.4293628,3104.5,3103.6,0.001]
[1767370709247,3.22133814,3104.3,3102.6,9.31461184]
[1767370709554,9.92615209,3104.4,3102.8,9.31461184]
[1767370709722,13.14686773,3104.9,3103.0,9.31461184]
[1767370710053,10.77015209,3104.7,3103.2,9.31461184]
[1767370710440,10.77015209,3104.7,3102.7,0.93146118]
[1767370710974,0.844,3104.6,3102.9,9.31461184]
[1767370711124,11.0031673,3104.5,3102.9,9.31461184]
[1767370711325,6.44246874,3104.4,3102.9,9.31461184]
[1767370711861,16.36862083,3104.4,3102.9,9.31461184]
[1767370712061,9.92615209,3104.3,3102.9,9.31461184]
[1767370712224,1.07701521,3104.5,3103.0,9.34683871]
[1767370712424,0.844,3104.6,3103.2,9.31461184]
[1767370712758,10.77015209,3105.3,3103.2,10.15861184]
[1767370712984,9.92615209,3105.0,3103.4,9.31461184]
[1767370713157,9.95026189,3104.9,3103.4,9.31461184]
[1767370713455,9.92615209,3104.9,3103.5,9.31461184]
[1767370713633,7.28524258,3105.0,3103.7,9.31461184]
[1767370713963,0.0241098,3104.9,3103.7,9.31461184]
[1767370714350,9.92615209,3105.9,3103.8,10.19083041]
[1767370714528,9.95026189,3105.8,3104.0,9.31461184]
[1767370714732,14.4293628,3105.3,3104.0,9.31461184]
[1767370714931,11.39319817,3105.2,3103.4,9.31461184]
[1767370715129,11.36908837,3105.2,3103.4,10.15861184]
[1767370715350,4.06450819,3105.1,3103.6,9.31461184]
[1767370715727,17.23527827,3105.1,3103.6,9.31461184]
[1767370715933,9.92615209,3105.0,3103.6,10.15861184]
[1767370716134,1.71824463,3104.9,3103.6,10.15861184]
[1767370716333,1.69413483,3104.9,3103.6,10.15861184]
[1767370716974,3.21949359,3106.1,3103.6,10.15861184]
[1767370716975,3.22009903,3105.5,3103.6,10.15861184]
[1767370717178,10.77015209,3105.4,3103.6,10.15861184]
[1767370717361,13.99038306,3105.4,3103.7,15.7585336]
[1767370717565,13.99038306,3105.4,3103.8,9.34683041]
[1767370717761,15.71143209,3105.4,3103.9,10.89368706]
[1767370717962,0.0241098,3105.3,3103.9,10.89368706]
[1767370718164,0.0241098,3105.3,3103.9,1.57907522]
[1767370718165,9.92615209,3105.2,3103.9,1.57907522]
[1767370718368,9.92615209,3105.2,3102.4,0.001]
[1767370718369,4.94128,3105.4,3103.7,9.31461184]
[1767370718578,0.0241098,3105.3,3104.0,9.31461184]
[1767370718777,6.44046194,3105.4,3104.0,9.31461184]
[1767370719072,0.0241098,3105.3,3104.0,9.31461184]
[1767370719383,5.20902936,3105.2,3104.0,10.15861184]
[1767370719571,0.844,3105.5,3104.1,10.3095361]
[1767370719770,4.06415745,3105.5,3104.1,10.3095361]
[1767370719962,4.08826725,3105.5,3104.1,10.3095361]
[1767370720146,0.8681098,3105.5,3104.1,10.3095361]
[1767370720346,0.844,3105.8,3104.1,10.3095361]
[1767370720670,0.0241098,3105.7,3104.3,9.31461184]
[1767370720850,5.20902936,3105.6,3104.3,9.31461184]
[1767370721046,0.002,3104.9,3104.3,9.31461184]
[1767370721247,0.002,3104.9,3104.1,0.844]
[1767370721450,0.002,3104.9,3104.1,10.15861184]
[1767370721649,0.844,3105.8,3104.2,9.31461184]
[1767370721856,9.92615209,3106.1,3104.4,9.31461184]
[1767370722059,0.846,3106.2,3104.4,9.31461184]
[1767370722060,4.0654016,3106.2,3104.4,9.31461184]
[1767370722280,0.846,3106.2,3104.4,9.31461184]
[1767370722782,3.22116997,3106.4,3105.4,9.31461184]
[1767370722976,3.54327744,3106.4,3105.2,0.844]
[1767370723174,16.68861001,3106.4,3104.8,9.31461184]
[1767370723483,6.43873542,3106.2,3104.8,9.31461184]
[1767370723777,3.21936771,3106.2,3104.9,10.15861184]
[1767370723982,6.43873542,3106.2,3104.9,9.31461184]
[1767370724152,8.11004685,3106.2,3104.9,10.15861184]
[1767370724462,4.89067914,3106.2,3104.9,10.15861184]
[1767370724670,3.21930554,3106.3,3104.9,10.15861184]
[1767370724972,3.21930554,3106.3,3104.2,9.31461184]
[1767370724973,9.95026189,3106.2,3104.2,9.31461184]
[1767370725168,9.92615209,3106.2,3104.3,0.87621338]
[1767370725486,9.92615209,3105.8,3104.1,1.01586118]
[1767370725681,9.92615209,3105.8,3104.3,0.844]
[1767370725682,9.92615209,3105.6,3104.3,0.844]
[1767370725855,9.92615209,3105.6,3103.6,3.22203306]
[1767370725856,9.92615209,3105.6,3103.6,9.31461184]
[1767370726174,9.92615209,3105.4,3104.0,9.31461184]
[1767370726383,1.85655673,3105.7,3104.1,9.31461184]
[1767370726549,9.95026189,3105.6,3104.1,9.31461184]
[1767370726887,0.95839738,3105.5,3104.1,10.56824237]
[1767370727176,0.98250718,3105.5,3104.1,10.56824237]
[1767370727376,0.98250718,3105.5,3103.8,9.31461184]
[1767370727377,10.90865927,3105.5,3103.8,9.31461184]
[1767370727582,6.44039414,3105.4,3103.8,9.31461184]
[1767370727776,0.8681098,3105.3,3103.8,9.31461184]
[1767370727978,0.8681098,3105.3,3103.9,9.31461184]
[1767370728279,0.0241098,3105.3,3103.9,9.31461184]
[1767370728461,3.22018073,3105.5,3104.1,9.31461184]
[1767370728774,3.21980259,3105.8,3104.1,9.31461184]
[1767370728991,16.36555116,3105.9,3104.3,9.31461184]
[1767370729158,9.95026189,3105.8,3104.3,9.31461184]
[1767370729360,9.92615209,3105.5,3103.8,9.31461184]
[1767370729657,5.5987862,3105.4,3104.0,9.31461184]
[1767370729979,4.06419733,3105.4,3104.2,9.31461184]
[1767370730183,7.30850446,3105.4,3104.2,9.31461184]
[1767370730389,0.002,3105.3,3104.2,9.31461184]
[1767370730553,0.002,3105.3,3104.2,10.15861184]
[1767370731984,0.002,3105.3,3104.2,9.31461184]
[1767370732205,10.92090088,3105.3,3103.7,9.31461184]
[1767370732488,10.89679108,3105.3,3103.7,10.15861184]
[1767370732668,9.92615209,3105.1,3103.7,10.15861184]
[1767370732867,9.95026189,3105.0,3103.5,0.001]
[1767370733095,9.92615209,3104.8,3103.5,0.001]
[1767370733300,0.25952256,3104.9,3102.7,10.78356523]
[1767370733301,9.92615209,3104.4,3102.7,10.78356523]
[1767370733595,9.92615209,3104.2,3102.9,0.844]
[1767370734359,9.92615209,3104.2,3102.5,0.001]
[1767370734601,9.92615209,3104.0,3102.5,0.001]
[1767370734766,9.92615209,3104.0,3102.6,9.31461184]
[1767370735098,1.17581691,3104.1,3102.5,0.001]
[1767370735099,9.92615209,3103.8,3102.5,0.001]
[1767370735584,3.22196088,3103.7,3102.5,0.001]
[1767370736101,3.22123437,3104.4,3102.6,9.2406883]
[1767370736305,6.44248941,3104.4,3102.8,9.2406883]
[1767370736462,9.07596741,3104.3,3102.9,0.844]
[1767370736766,9.66374445,3104.4,3102.5,0.001]
[1767370736767,9.07596741,3104.1,3102.5,0.001]
[1767370737109,1.95697179,3103.4,3101.5,9.2406883]
[1767370737263,0.73767084,3103.3,3101.7,9.2406883]
[1767370737584,0.73767084,3103.3,3101.6,0.92406883]
[1767370737585,3.22237618,3103.3,3101.9,9.2406883]
[1767370737998,6.44475236,3103.3,3101.9,9.2406883]
[1767370738202,3.22237618,3103.3,3102.5,0.001]
[1767370738694,3.22210253,3103.6,3102.5,0.001]
[1767370738989,0.844,3103.4,3102.5,0.001]
[1767370740324,9.07596741,3103.3,3102.5,0.001]
[1767370740782,9.07596741,3103.3,3101.1,0.001]
[1767370740783,0.25952256,3102.8,3101.3,9.2416883]
[1767370740987,9.07596741,3102.7,3101.3,9.2416883]
[1767370741215,0.844,3102.6,3101.3,9.2416883]
[1767370741687,9.91996741,3102.6,3101.3,9.2416883]
[1767370741886,3.22331098,3102.4,3101.3,9.2416883]
[1767370742093,3.22321881,3102.5,3101.3,9.2416883]
[1767370742396,15.52240503,3102.5,3101.3,9.2416883]
[1767370742620,9.07596741,3102.5,3101.3,9.2416883]
[1767370742911,0.845,3102.5,3101.5,9.2406883]
[1767370743086,9.92096741,3102.5,3101.3,0.001]
[1767370743400,0.99209674,3102.4,3101.3,0.001]
[1767370743608,10.06806415,3102.4,3101.3,0.001]
[1767370743978,12.29931573,3102.4,3101.3,0.001]
[1767370744314,9.07596741,3102.3,3101.3,0.001]
[1767370744691,3.22321065,3102.5,3101.3,9.2416883]
[1767370744882,0.845,3102.6,3101.3,9.2416883]
[1767370745200,9.92096741,3102.6,3101.3,0.001]
[1767370746013,0.845,3102.5,3101.3,9.2416883]
[1767370746312,9.92096741,3102.5,3101.3,0.001]
[1767370746610,9.07596741,3102.2,3101.1,0.001]
[1767370746774,9.07596741,3102.2,3100.5,9.2406883]
[1767370746976,9.07596741,3102.0,3100.5,10.16475713]
[1767370747182,9.07596741,3101.7,3100.1,0.001]
[1767370747382,9.07596741,3101.7,3100.2,9.2406883]
[1767370747612,0.845,3101.9,3100.5,9.2406883]
[1767370747776,0.845,3101.9,3100.9,9.2406883]
[1767370747977,12.29957684,3102.2,3101.0,9.25988504]
[1767370748181,12.29949405,3102.2,3101.1,0.9259885]
[1767370748429,12.29949405,3102.2,3101.1,10.1666768]
[1767370748430,9.07596741,3102.2,3101.1,10.1666768]
[1767370748715,9.07596741,3102.0,3100.5,9.2406883]
[1767370749010,9.07596741,3102.0,3100.1,0.001]
[1767370749011,9.07596741,3101.5,3100.3,9.2406883]
[1767370749178,0.845,3101.5,3100.3,9.2406883]
[1767370750090,0.845,3101.5,3100.4,9.2406883]
[1767370750289,0.845,3101.5,3100.6,9.2406883]
[1767370750610,12.29983813,3101.9,3100.7,10.16475713]
[1767370750820,9.07596741,3101.8,3100.7,10.16475713]
[1767370751005,9.07596741,3101.8,3100.7,9.2406883]
[1767370751317,9.07596741,3101.8,3100.2,10.0856883]
[1767370751518,9.07596741,3101.6,3100.2,10.0856883]
[1767370751690,9.07596741,3101.4,3100.2,10.0856883]
[1767370751881,9.07596741,3101.4,3100.1,0.001]
[1767370751882,3.22445426,3101.3,3100.1,0.001]
[1767370752211,12.30031803,3101.4,3100.2,0.845]
[1767370752413,16.83920045,3101.4,3100.1,9.2416883]
[1767370752711,9.07596741,3101.3,3100.1,0.001]
[1767370753082,9.07596741,3101.3,3100.1,0.03325702]
[1767370753310,9.07596741,3101.3,3100.1,0.001]
[1767370753819,9.07596741,3101.3,3100.1,9.2416883]
[1767370754121,9.07596741,3101.3,3100.2,0.92426883]
[1767370754336,0.845,3101.6,3100.3,9.2406883]
[1767370754520,0.845,3101.6,3100.2,16.61614002]
[1767370754521,0.845,3102.2,3100.5,9.2406883]
[1767370754718,0.0241098,3102.1,3100.5,9.2406883]
[1767370754923,0.845,3102.2,3100.7,9.2406883]
[1767370755229,3.22319671,3102.6,3100.6,1.04182065]
[1767370755230,9.92096741,3102.6,3100.9,9.2406883]
[1767370755435,9.92096741,3102.6,3101.1,9.2406883]
[1767370755730,9.07596741,3103.0,3101.1,9.2406883]
[1767370756029,9.07596741,3102.9,3101.1,10.0856883]
[1767370756234,3.22299932,3102.7,3101.3,12.46509099]
[1767370756399,9.10007721,3102.6,3101.4,9.2406883]
[1767370756603,9.07596741,3102.5,3101.4,9.2406883]
[1767370756799,9.07596741,3102.5,3101.2,1.00856883]
[1767370757023,9.07596741,3102.5,3101.3,12.46513961]
[1767370757205,9.07596741,3102.5,3101.3,10.67255914]
[1767370758053,9.07596741,3102.3,3100.9,9.2406883]
[1767370758195,9.07596741,3102.1,3100.9,9.2406883]
[1767370758400,9.07596741,3102.7,3100.9,9.2406883]
[1767370758606,9.92096741,3102.7,3101.0,9.2406883]
[1767370759235,9.92096741,3102.7,3101.1,10.0856883]
[1767370759532,9.07596741,3102.5,3101.2,1.85356883]
[1767370759702,9.07596741,3102.5,3101.2,1.00856883]
[1767370759902,9.07596741,3102.5,3101.1,10.0856883]
[1767370760108,9.07596741,3102.1,3100.6,0.001]
[1767370760300,9.07596741,3101.9,3100.6,0.001]
[1767370760515,0.8691098,3102.0,3100.6,0.001]
[1767370760516,9.07596741,3101.7,3100.6,0.001]
[1767370760807,9.07596741,3101.5,3100.6,0.001]
[1767370761034,9.5837434,3101.4,3100.6,0.001]
[1767370762206,9.5837434,3101.4,3100.1,0.001]
[1767370762207,9.07596741,3101.2,3100.1,0.001]
[1767370762524,9.07596741,3101.1,3100.1,0.001]
[1767370763113,0.50777599,3101.4,3100.1,9.2416883]
[1767370763332,3.73215022,3101.4,3100.1,9.2416883]
[1767370763534,9.07596741,3101.1,3100.1,0.001]
[1767370763733,9.92096741,3101.0,3100.1,0.001]
[1767370764106,16.03249186,3101.4,3100.1,0.001]
[1767370764306,9.92096741,3101.3,3100.1,9.2416883]
[1767370764511,9.07596741,3100.9,3100.1,0.001]
[1767370764732,9.07596741,3100.9,3099.6,10.0856883]
[1767370765051,9.07596741,3100.9,3099.6,13.31189124]
[1767370765246,0.99261521,3101.2,3099.7,9.2406883]
[1767370765413,4.06951827,3101.3,3099.9,9.2406883]
[1767370765607,0.845,3101.3,3099.9,9.2406883]
[1767370765808,9.92096741,3101.4,3100.1,9.2406883]
[1767370766136,13.14536231,3101.4,3100.1,9.2406883]
[1767370766349,9.92096741,3101.4,3100.1,9.2406883]
[1767370766944,9.92096741,3101.4,3100.2,10.47047061]
[1767370767514,9.92096741,3101.4,3100.3,9.54640178]
[1767370767815,9.79404834,3101.3,3099.9,9.54640178]
[1767370768016,9.76993854,3101.3,3099.9,9.54640178]
[1767370768220,9.76993854,3101.3,3099.9,12.77230704]
[1767370768420,11.47629967,3101.3,3100.0,10.90813248]
[1767370768819,9.76993854,3101.1,3099.7,9.54640178]
[1767370769055,10.61493854,3101.1,3100.0,9.54640178]
[1767370769642,0.845,3101.3,3100.1,9.54640178]
[1767370770233,0.845,3101.3,3100.3,9.54640178]
[1767370770435,9.76993854,3102.1,3100.4,10.42365568]
[1767370770745,9.76993854,3101.9,3100.6,9.54640178]
[1767370771044,9.76993854,3101.9,3100.6,12.7715689]
[1767370771415,9.76993854,3101.9,3100.6,15.99675112]
[1767370771615,9.76993854,3101.9,3100.7,9.54640178]
[1767370772723,9.76993854,3101.6,3100.0,9.54740178]
[1767370772933,9.76993854,3101.6,3100.3,9.54640178]
[1767370773153,0.002,3101.4,3100.3,12.77187022]
[1767370773447,0.002,3101.4,3100.5,9.54640178]
[1767370773643,0.002,3101.4,3100.4,3.22533369]
[1767370773644,0.002,3101.4,3100.2,3.22554368]
[1767370773940,0.002,3101.4,3100.3,9.96443017]
[1767370774144,0.002,3101.4,3100.0,0.001]
[1767370774145,9.77193854,3101.4,3100.0,0.001]
[1767370774331,9.76993854,3101.2,3100.0,0.001]
[1767370774532,9.76993854,3101.2,3099.7,9.54640178]
[1767370774533,9.76993854,3101.0,3099.4,0.001]
[1767370774732,9.76993854,3100.6,3099.4,0.001]
[1767370774935,10.61493854,3100.6,3099.4,0.001]
[1767370775140,9.76993854,3100.5,3099.4,0.001]
[1767370776142,0.845,3100.7,3099.4,9.57966608]
[1767370776314,0.845,3100.7,3099.4,0.001]
[1767370776315,10.61493854,3100.7,3099.4,0.001]
[1767370776525,9.76993854,3100.5,3099.4,0.001]
[1767370776743,9.76993854,3100.3,3099.4,0.001]
[1767370776946,9.76993854,3100.1,3099.4,0.001]
[1767370777441,9.76993854,3100.7,3099.4,0.001]
[1767370777627,9.76993854,3100.7,3099.4,9.57966608]
[1767370777829,9.76993854,3100.7,3099.5,9.57866504]
[1767370778034,0.845,3101.0,3099.5,9.54640178]
[1767370778237,9.76993854,3101.0,3099.7,9.54640178]
[1767370778431,10.61493854,3101.0,3099.7,9.54640178]
[1767370778751,13.83975215,3101.0,3099.7,9.54640178]
[1767370778925,10.61493854,3100.9,3099.7,9.54640178]
[1767370780930,9.76993854,3100.7,3099.5,0.845]
[1767370781468,9.76993854,3100.7,3099.6,9.9536437]
[1767370781622,9.76993854,3100.5,3099.4,0.001]
[1767370781949,9.76993854,3100.3,3099.4,0.001]
[1767370782143,9.76993854,3100.7,3099.4,9.54740178]
[1767370782339,0.0241098,3100.6,3099.5,9.54640178]
[1767370782539,9.76993854,3100.7,3099.7,9.54640178]
[1767370783852,0.002,3101.4,3099.8,9.56563313]
[1767370784054,0.002,3101.4,3100.0,9.54640178]
[1767370784356,0.002,3101.4,3099.8,9.54640178]
[1767370784357,9.72626037,3101.4,3099.8,9.54640178]
[1767370784553,9.72626037,3101.4,3099.7,6.45222643]
[1767370784554,0.002,3101.4,3100.0,9.54640178]
[1767370784757,0.002,3101.4,3100.2,9.54640178]
[1767370785581,0.002,3101.4,3100.1,1.03914018]
[1767370785582,0.002,3101.4,3100.3,9.54640178]
[1767370786047,0.002,3101.4,3100.4,10.39140178]
[1767370787145,9.72626037,3101.4,3100.1,1.03914018]
[1767370787330,10.57126037,3101.4,3099.9,10.39140178]
[1767370788136,9.72626037,3101.4,3100.0,9.54640178]
[1767370788335,9.76993854,3101.2,3100.0,9.54640178]
[1767370788545,9.76993854,3101.0,3099.8,0.845]
[1767370788755,9.76993854,3101.0,3099.8,10.39140178]
[1767370789057,9.77193854,3101.4,3100.1,9.54640178]
[1767370789269,9.79404834,3101.3,3100.1,9.54640178]
[1767370789470,9.76993854,3101.3,3099.7,9.54640178]
[1767370789660,9.76993854,3101.1,3099.9,0.845]
[1767370789959,9.76993854,3101.1,3099.9,10.39140178]
[1767370790162,10.74693239,3101.1,3099.9,10.39140178]
[1767370790468,10.74693239,3101.1,3099.9,0.845]
[1767370790864,10.74693239,3101.1,3099.7,9.54640178]
[1767370791039,9.76993854,3100.9,3099.4,0.846]
[1767370791567,9.76993854,3100.7,3099.4,13.61876955]
[1767370791877,9.76993854,3100.7,3099.5,10.90827874]
[1767370792269,9.76993854,3100.7,3099.4,0.001]
[1767370793892,9.76993854,3100.5,3099.4,0.001]
[1767370794474,10.61493854,3100.5,3099.4,0.001]
[1767370794886,9.76993854,3100.0,3098.8,0.001]
[1767370795192,9.76993854,3099.8,3098.8,0.001]
[1767370795648,9.76993854,3099.8,3098.1,0.846]
[1767370795803,9.76993854,3099.6,3098.2,9.54740178]
[1767370797002,9.76993854,3099.6,3098.3,0.845]
[1767370797499,9.76993854,3099.6,3098.2,0.001]
[1767370797702,9.36172758,3099.4,3098.2,9.60429575]
[1767370797854,12.58821516,3099.4,3098.2,9.57201895]
[1767370798167,12.58817349,3099.4,3098.2,9.57201895]
[1767370798559,9.36172758,3099.3,3098.2,9.57201895]
[1767370798878,9.36172758,3099.3,3098.2,10.41701895]
[1767370799068,9.36172758,3099.3,3098.2,11.45892084]
[1767370799269,9.36172758,3099.3,3098.3,0.845]
[1767370799694,9.36172758,3099.3,3098.2,0.001]
[1767370799859,9.36172758,3099.1,3098.2,0.001]
[1767370800197,9.36172758,3098.9,3098.0,0.001]
[1767370800357,9.36172758,3098.9,3097.4,9.57101895]
[1767370800690,9.36172758,3098.9,3097.5,10.41601895]
[1767370800856,9.36172758,3098.9,3097.7,9.57101895]
[1767370801053,3.22654977,3099.3,3097.9,9.57101895]
[1767370801054,9.36172758,3099.3,3097.9,9.57101895]
[1767370801253,9.36172758,3099.2,3097.9,9.57101895]
[1767370801499,9.36172758,3099.6,3097.9,9.57101895]
[1767370801783,3.22643092,3099.4,3098.0,13.64389719]
[1767370801991,9.36172758,3099.3,3098.1,9.60329679]
[1767370802158,9.36172758,3099.6,3098.3,9.57101895]
[1767370802361,9.36172758,3100.0,3098.6,9.57101895]
[1767370802589,9.36372758,3100.1,3098.6,9.57101895]
[1767370802765,9.38583738,3100.0,3098.7,9.57101895]
[1767370802970,9.38583738,3100.0,3098.2,1.6904064]
[1767370802971,0.002,3100.1,3098.8,10.41601895]
[1767370803167,9.36172758,3100.4,3099.0,9.57101895]
[1767370803474,9.36172758,3100.3,3099.1,0.845]
[1767370803870,9.36172758,3100.3,3099.1,10.41601895]
[1767370804193,9.36172758,3100.7,3099.2,9.57101895]
[1767370804396,9.36172758,3100.7,3099.1,7.29846876]
[1767370804397,9.36372758,3100.7,3099.4,9.57101895]
[1767370804701,9.36372758,3100.7,3099.6,9.57101895]
[1767370804913,9.36372758,3100.7,3099.7,0.846]
[1767370805072,9.36172758,3100.6,3099.2,9.57101895]
[1767370805278,3.22708623,3100.7,3099.0,0.001]
[1767370805279,9.36172758,3100.4,3099.0,0.001]
[1767370805585,9.36172758,3100.2,3099.0,0.001]
[1767370805808,9.36172758,3100.2,3099.2,9.57101895]
[1767370805970,9.36172758,3100.5,3099.2,9.57101895]
[1767370806179,9.36172758,3100.5,3099.0,1.28090053]
[1767370806384,6.4503706,3100.6,3099.1,0.846]
[1767370806385,9.36172758,3100.3,3099.1,0.846]
[1767370806682,9.36172758,3100.3,3099.2,9.57101895]
[1767370806882,9.36172758,3100.3,3099.3,10.61272084]
[1767370807283,9.36172758,3100.3,3099.0,1.28090053]
[1767370807595,9.36172758,3100.3,3099.1,0.845]
[1767370808192,9.36172758,3100.3,3099.1,4.07172243]
[1767370808391,9.36172758,3100.3,3099.0,14.07873591]
[1767370808596,9.36172758,3100.3,3099.1,4.07173619]
[1767370808806,0.002,3100.7,3099.3,9.57101895]
[1767370809007,0.002,3100.7,3099.7,9.57101895]
[1767370809197,9.36372758,3100.7,3099.2,1.49236557]
[1767370809400,9.38583738,3100.6,3099.3,0.845]
[1767370809707,9.36172758,3100.6,3099.3,0.845]
[1767370809921,9.36172758,3100.4,3099.3,0.845]
[1767370810648,9.36172758,3100.3,3099.3,0.845]
[1767370811487,9.36172758,3100.1,3099.0,0.001]
[1767370811692,9.36172758,3099.9,3099.0,0.001]
[1767370812211,9.36172758,3099.9,3099.0,0.846]
[1767370812714,9.36172758,3099.9,3099.3,0.001]
[1767370812912,0.25952256,3099.5,3098.0,9.57101895]
[1767370813083,10.32385259,3099.4,3098.3,9.57101895]
[1767370813282,9.36172758,3099.4,3098.3,9.57101895]
[1767370813981,7.29792248,3099.9,3098.6,9.57101895]
[1767370813982,9.36172758,3099.8,3098.6,9.57101895]
[1767370814402,9.36172758,3099.6,3098.6,0.845]
[1767370814609,9.36172758,3100.0,3098.7,0.03017081]
[1767370814913,9.36172758,3100.0,3098.8,9.57101895]
[1767370815117,9.36172758,3100.0,3098.9,11.37713793]
[1767370815439,9.36172758,3100.0,3099.1,9.57101895]
[1767370815587,9.36372758,3100.3,3099.1,9.57101895]
[1767370817126,0.002,3100.7,3099.4,9.57101895]
[1767370817290,0.002,3100.7,3099.6,9.57101895]
[1767370817628,0.002,3100.7,3099.7,10.61272084]
[1767370818187,0.848,3101.4,3100.1,9.57101895]
[1767370818304,0.002,3101.4,3100.5,9.57101895]